[Event "Titled Tuesday Blitz May 10 Early 2022"]
[White "Molina, Roberto Junio Brito"]
[Black "Hua, Lefong"]
[WhiteFideId "2109450"]
[BlackFideId "2602253"]
[WhiteElo "2432"]
[BlackElo "2612"]
[Result "1-0"]
[Round "06"]
[TimeControl "180+1"]
[Date "2022.05.11"]
[WhiteClock "0:00:10"]
[BlackClock "0:00:06"]

1. d4 {[%clk 0:03:00]}  Nf6 {[%clk 0:02:59]} 2. e3 {[%clk 0:03:01]}  g6 {[%clk 0:02:59]} 3. Nf3 {[%clk 0:03:02]}  Bg7 {[%clk 0:02:59]} 4. b3 {[%clk 0:03:03]}  O-O {[%clk 0:02:59]} 5. Bb2 {[%clk 0:03:04]}  d6 {[%clk 0:02:59]} 6. Be2 {[%clk 0:03:04]}  c5 {[%clk 0:02:59]} 7. O-O {[%clk 0:03:05]}  Nc6 {[%clk 0:02:58]} 8. c4 {[%clk 0:03:06]}  cxd4 {[%clk 0:02:58]} 9. Nxd4 {[%clk 0:03:06]}  Bd7 {[%clk 0:02:57]} 10. Nc3 {[%clk 0:03:05]}  Qa5 {[%clk 0:02:57]} 11. a3 {[%clk 0:03:04]}  Rfc8 {[%clk 0:02:54]} 12. b4 {[%clk 0:03:04]}  Qd8 {[%clk 0:02:54]} 13. Rc1 {[%clk 0:03:02]}  a6 {[%clk 0:02:53]} 14. Qb3 {[%clk 0:02:58]}  Rab8 {[%clk 0:02:49]} 15. Rfd1 {[%clk 0:02:57]}  Qe8 {[%clk 0:02:43]} 16. Nf3 {[%clk 0:02:50]}  Bg4 {[%clk 0:02:41]} 17. h3 {[%clk 0:02:49]}  Bxf3 {[%clk 0:02:41]} 18. Bxf3 {[%clk 0:02:50]}  Nd7 {[%clk 0:02:35]} 19. Nd5 {[%clk 0:02:43]}  Bxb2 {[%clk 0:02:27]} 20. Qxb2 {[%clk 0:02:43]}  Nce5 {[%clk 0:02:18]} 21. Be2 {[%clk 0:02:43]}  e6 {[%clk 0:02:18]} 22. Nf4 {[%clk 0:02:39]}  Qe7 {[%clk 0:02:14]} 23. Qd4 {[%clk 0:02:35]}  Rc6 {[%clk 0:02:02]} 24. Nd3 {[%clk 0:01:57]}  Rbc8 {[%clk 0:01:53]} 25. Nxe5 {[%clk 0:01:51]}  Nxe5 {[%clk 0:01:52]} 26. f4 {[%clk 0:01:48]}  Nd7 {[%clk 0:01:44]} 27. Bf3 {[%clk 0:01:45]}  d5 {[%clk 0:01:40]} 28. Be2 {[%clk 0:01:08]}  b6 {[%clk 0:00:59]} 29. Ra1 {[%clk 0:00:59]}  Nf6 {[%clk 0:00:43]} 30. cxd5 {[%clk 0:00:58]}  exd5 {[%clk 0:00:41]} 31. Bxa6 {[%clk 0:00:56]}  Rd8 {[%clk 0:00:38]} 32. Bb5 {[%clk 0:00:54]}  Re6 {[%clk 0:00:37]} 33. Re1 {[%clk 0:00:45]}  Re4 {[%clk 0:00:31]} 34. Qd2 {[%clk 0:00:29]}  d4 {[%clk 0:00:29]} 35. exd4 {[%clk 0:00:26]}  Rdxd4 {[%clk 0:00:29]} 36. Qf2 {[%clk 0:00:24]}  Qd6 {[%clk 0:00:22]} 37. Rxe4 {[%clk 0:00:20]}  Nxe4 {[%clk 0:00:21]} 38. Qe3 {[%clk 0:00:20]}  Nd2 {[%clk 0:00:17]} 39. Qe8+ {[%clk 0:00:15]}  Kg7 {[%clk 0:00:17]} 40. Qe5+ {[%clk 0:00:16]}  Qxe5 {[%clk 0:00:15]} 41. fxe5 {[%clk 0:00:17]}  Re4 {[%clk 0:00:14]} 42. Bd3 {[%clk 0:00:16]}  Rxe5 {[%clk 0:00:14]} 43. a4 {[%clk 0:00:16]}  Nb3 {[%clk 0:00:11]} 44. Ra3 {[%clk 0:00:15]}  Nd4 {[%clk 0:00:11]} 45. a5 {[%clk 0:00:15]}  bxa5 {[%clk 0:00:12]} 46. bxa5 {[%clk 0:00:15]}  Nc6 {[%clk 0:00:12]} 47. a6 {[%clk 0:00:15]}  Na7 {[%clk 0:00:13]} 48. Kf2 {[%clk 0:00:14]}  Kf6 {[%clk 0:00:11]} 49. Rb3 {[%clk 0:00:14]}  Ra5 {[%clk 0:00:10]} 50. Ke3 {[%clk 0:00:14]}  Ke5 {[%clk 0:00:09]} 51. Rb7 {[%clk 0:00:13]}  Nc6 {[%clk 0:00:08]} 52. Rxf7 {[%clk 0:00:13]}  h5 {[%clk 0:00:07]} 53. Rg7 {[%clk 0:00:12]}  Ra3 {[%clk 0:00:06]} 54. Rb7 {[%clk 0:00:10]}  Kd6 {[%clk 0:00:05]} 55. Ke4 {[%clk 0:00:09]}  Ra4+ {[%clk 0:00:05]} 56. Ke3 {[%clk 0:00:09]}  Ra3 {[%clk 0:00:05]} 57. Kd2 {[%clk 0:00:10]}  Ne5 {[%clk 0:00:05]} 58. Be2 {[%clk 0:00:09]}  Ra2+ {[%clk 0:00:05]} 59. Ke3 {[%clk 0:00:09]}  Ra3+ {[%clk 0:00:05]} 60. Kf4 {[%clk 0:00:09]}  Ra4+ {[%clk 0:00:04]} 61. Kg5 {[%clk 0:00:10]}  Ra2 {[%clk 0:00:05]} 62. Bf3 {[%clk 0:00:07]}  Rxa6 {[%clk 0:00:04]} 63. Rb3 {[%clk 0:00:06]}  Ke6 {[%clk 0:00:03]} 64. Be4 {[%clk 0:00:05]}  Ra5 {[%clk 0:00:03]} 65. Kh6 {[%clk 0:00:05]}  Kf6 {[%clk 0:00:03]} 66. Rb6+ {[%clk 0:00:04]}  Kf7 {[%clk 0:00:04]} 67. Bxg6+ {[%clk 0:00:04]}  Nxg6 {[%clk 0:00:04]} 68. Rxg6 {[%clk 0:00:05]}  h4 {[%clk 0:00:04]} 69. Rg5 {[%clk 0:00:05]}  Ra4 {[%clk 0:00:03]} 70. Kh5 {[%clk 0:00:05]}  Kf6 {[%clk 0:00:03]} 71. Rg4 {[%clk 0:00:06]}  Ra2 {[%clk 0:00:04]} 72. Kxh4 {[%clk 0:00:06]}  Ra3 {[%clk 0:00:04]} 73. Rg3 {[%clk 0:00:06]}  Ra4+ {[%clk 0:00:05]} 74. Rg4 {[%clk 0:00:06]}  Ra3 {[%clk 0:00:05]} 75. Rf4+ {[%clk 0:00:06]}  Kg6 {[%clk 0:00:05]} 76. g3 {[%clk 0:00:07]}  Ra5 {[%clk 0:00:05]} 77. Kg4 {[%clk 0:00:07]}  Kh6 {[%clk 0:00:05]} 78. h4 {[%clk 0:00:07]}  Kg6 {[%clk 0:00:06]} 79. Kh3 {[%clk 0:00:07]}  Ra3 {[%clk 0:00:05]} 80. Rg4+ {[%clk 0:00:08]}  Kh5 {[%clk 0:00:06]} 81. Rg5+ {[%clk 0:00:09]}  Kh6 {[%clk 0:00:06]} 82. Rd5 {[%clk 0:00:09]}  Ra4 {[%clk 0:00:07]} 83. Rd6+ {[%clk 0:00:09]}  Kh5 {[%clk 0:00:06]} 84. Rd3 {[%clk 0:00:10]}  Kh6 {[%clk 0:00:06]} 85. Re3 {[%clk 0:00:11]}  Kh5 {[%clk 0:00:07]} 86. Re6 {[%clk 0:00:10]}  Ra3 {[%clk 0:00:06]} 87. Re5+ {[%clk 0:00:10]}  Kg6 {[%clk 0:00:07]} 88. Rg5+ {[%clk 0:00:09]}  Kh6 {[%clk 0:00:07]} 89. Rf5 {[%clk 0:00:09]}  Rb3 {[%clk 0:00:07]} 90. Rf4 {[%clk 0:00:10]}  Ra3 {[%clk 0:00:08]} 91. Kg4 {[%clk 0:00:11]}  Rb3 {[%clk 0:00:08]} 92. Rf6+ {[%clk 0:00:11]}  Kg7 {[%clk 0:00:08]} 93. Rc6 {[%clk 0:00:11]}  Ra3 {[%clk 0:00:09]} 94. Rd6 {[%clk 0:00:11]}  Kh7 {[%clk 0:00:09]} 95. Re6 {[%clk 0:00:12]}  Kg7 {[%clk 0:00:09]} 96. h5 {[%clk 0:00:12]}  Kh7 {[%clk 0:00:10]} 97. Kh4 {[%clk 0:00:13]}  Kg7 {[%clk 0:00:10]} 98. g4 {[%clk 0:00:13]}  Ra1 {[%clk 0:00:10]} 99. Kg5 {[%clk 0:00:13]}  Ra5+ {[%clk 0:00:10]} 100. Kf4 {[%clk 0:00:14]}  Ra4+ {[%clk 0:00:11]} 101. Re4 {[%clk 0:00:14]}  Ra1 {[%clk 0:00:11]} 102. Kf5 {[%clk 0:00:14]}  Ra5+ {[%clk 0:00:11]} 103. Re5 {[%clk 0:00:14]}  Ra1 {[%clk 0:00:12]} 104. Re7+ {[%clk 0:00:14]}  Kf8 {[%clk 0:00:11]} 105. Rd7 {[%clk 0:00:14]}  Ra6 {[%clk 0:00:09]} 106. g5 {[%clk 0:00:13]}  Kg8 {[%clk 0:00:10]} 107. Re7 {[%clk 0:00:13]}  Ra5+ {[%clk 0:00:09]} 108. Re5 {[%clk 0:00:13]}  Ra1 {[%clk 0:00:09]} 109. Kf6 {[%clk 0:00:13]}  Rf1+ {[%clk 0:00:09]} 110. Kg6 {[%clk 0:00:13]}  Rf8 {[%clk 0:00:08]} 111. Re7 {[%clk 0:00:12]}  Ra8 {[%clk 0:00:08]} 112. Re6 {[%clk 0:00:12]}  Rb8 {[%clk 0:00:07]} 113. h6 {[%clk 0:00:12]}  Ra8 {[%clk 0:00:08]} 114. Kf6 {[%clk 0:00:12]}  Rb8 {[%clk 0:00:07]} 115. g6 {[%clk 0:00:12]}  Kh8 {[%clk 0:00:07]} 116. Kf7 {[%clk 0:00:12]}  Rf8+ {[%clk 0:00:06]} 117. Ke7 {[%clk 0:00:11]}  Ra8 {[%clk 0:00:06]} 118. Rf6 {[%clk 0:00:10]}  Ra7+ {[%clk 0:00:06]} 119. Ke6 {[%clk 0:00:10]}  Ra6+ {[%clk 0:00:06]} 120. Kf5 {[%clk 0:00:11]}  Ra5+ {[%clk 0:00:07]} 121. Kg4 {[%clk 0:00:12]}  Ra8 {[%clk 0:00:06]} 122. Kg5 {[%clk 0:00:12]}  Kg8 {[%clk 0:00:07]} 123. Rf7 {[%clk 0:00:11]}  Ra5+ {[%clk 0:00:06]} 124. Rf5 {[%clk 0:00:12]}  Ra8 {[%clk 0:00:06]} 125. Re5 {[%clk 0:00:13]}  Rb8 {[%clk 0:00:06]} 126. Kf6 {[%clk 0:00:13]}  Rb6+ {[%clk 0:00:06]} 127. Kf5 {[%clk 0:00:13]}  Rb8 {[%clk 0:00:05]} 128. Rd5 {[%clk 0:00:14]}  Ra8 {[%clk 0:00:06]} 129. Ke6 {[%clk 0:00:14]}  Ra6+ {[%clk 0:00:06]} 130. Rd6 {[%clk 0:00:14]}  Ra8 {[%clk 0:00:06]} 131. Ke7 {[%clk 0:00:14]}  Rf8 {[%clk 0:00:02]} 132. Rd8 {[%clk 0:00:12]}  Rxd8 {[%clk 0:00:02]} 133. Kxd8 {[%clk 0:00:12]}  Kf8 {[%clk 0:00:03]} 134. Kd7 {[%clk 0:00:12]}  Kg8 {[%clk 0:00:03]} 135. Ke6 {[%clk 0:00:12]}  Kf8 {[%clk 0:00:04]} 136. Kf6 {[%clk 0:00:12]}  Kg8 {[%clk 0:00:05]} 137. g7 {[%clk 0:00:10]}  Kh7 {[%clk 0:00:05]} 138. Kf7 {[%clk 0:00:10]}  Kxh6 {[%clk 0:00:05]} 139. g8=Q {[%clk 0:00:10]}  Kh5 {[%clk 0:00:05]} 140. Qg3 {[%clk 0:00:09]}  Kh6 {[%clk 0:00:06]} 141. Qg6# {[%clk 0:00:10]} 1-0


[Site "https://www.chess.com"]

[Event "Titled Tuesday Blitz May 10 Early 2022"]
[White "Namitbir Singh Walia"]
[Black "Horak, Martin"]
[WhiteFideId "35071068"]
[BlackFideId "367095"]
[WhiteElo "1565"]
[BlackElo "1997"]
[Result "1-0"]
[Round "06"]
[TimeControl "180+1"]
[Date "2022.05.11"]
[WhiteClock "0:01:31"]
[BlackClock "0:00:53"]

1. d4 {[%clk 0:03:00]}  Nf6 {[%clk 0:02:59]} 2. c4 {[%clk 0:03:00]}  e6 {[%clk 0:02:59]} 3. g3 {[%clk 0:02:59]}  d5 {[%clk 0:02:55]} 4. Bg2 {[%clk 0:02:59]}  c6 {[%clk 0:02:55]} 5. Nf3 {[%clk 0:02:58]}  Bd6 {[%clk 0:02:56]} 6. O-O {[%clk 0:02:58]}  Nbd7 {[%clk 0:02:56]} 7. Qc2 {[%clk 0:02:57]}  O-O {[%clk 0:02:56]} 8. b3 {[%clk 0:02:58]}  Re8 {[%clk 0:02:55]} 9. Bb2 {[%clk 0:02:57]}  e5 {[%clk 0:02:46]} 10. dxe5 {[%clk 0:02:54]}  Nxe5 {[%clk 0:02:47]} 11. Nbd2 {[%clk 0:02:55]}  dxc4 {[%clk 0:02:32]} 12. Nxc4 {[%clk 0:02:53]}  Nxc4 {[%clk 0:02:25]} 13. Qxc4 {[%clk 0:02:54]}  Be6 {[%clk 0:02:15]} 14. Qc2 {[%clk 0:02:53]}  Be7 {[%clk 0:02:10]} 15. e4 {[%clk 0:02:39]}  Nd7 {[%clk 0:01:56]} 16. Nd4 {[%clk 0:02:35]}  Bf6 {[%clk 0:01:33]} 17. Nxe6 {[%clk 0:02:35]}  Rxe6 {[%clk 0:01:34]} 18. Rad1 {[%clk 0:02:35]}  Bxb2 {[%clk 0:01:27]} 19. Qxb2 {[%clk 0:02:33]}  Qc7 {[%clk 0:01:27]} 20. Bh3 {[%clk 0:02:32]}  Rd6 {[%clk 0:01:22]} 21. Qc2 {[%clk 0:02:08]}  Rd8 {[%clk 0:01:18]} 22. Rxd6 {[%clk 0:02:07]}  Qxd6 {[%clk 0:01:18]} 23. Rd1 {[%clk 0:02:07]}  Ne5 {[%clk 0:01:00]} 24. Rxd6 {[%clk 0:02:04]}  Rxd6 {[%clk 0:01:01]} 25. Bg2 {[%clk 0:01:39]}  h5 {[%clk 0:00:52]} 26. f4 {[%clk 0:01:39]}  Ng4 {[%clk 0:00:53]} 27. Bf3 {[%clk 0:01:31]} 1-0


[Site "https://www.chess.com"]

[Event "Titled Tuesday Blitz May 10 Early 2022"]
[White "Nenezic, Marko"]
[Black "Xu, Yi"]
[WhiteFideId "912123"]
[BlackFideId "8605564"]
[WhiteElo "2457"]
[BlackElo "2471"]
[Result "1-0"]
[Round "06"]
[TimeControl "180+1"]
[Date "2022.05.10"]
[WhiteClock "0:00:08"]
[BlackClock "0:00:11"]

1. Nf3 {[%clk 0:03:00]}  d5 {[%clk 0:02:59]} 2. g3 {[%clk 0:03:01]}  Nf6 {[%clk 0:02:57]} 3. Bg2 {[%clk 0:03:01]}  e6 {[%clk 0:02:57]} 4. O-O {[%clk 0:03:01]}  Be7 {[%clk 0:02:58]} 5. d4 {[%clk 0:03:01]}  O-O {[%clk 0:02:58]} 6. c4 {[%clk 0:03:02]}  dxc4 {[%clk 0:02:58]} 7. Qc2 {[%clk 0:02:56]}  a6 {[%clk 0:02:58]} 8. a4 {[%clk 0:02:55]}  Bd7 {[%clk 0:02:59]} 9. Qxc4 {[%clk 0:02:55]}  Bc6 {[%clk 0:02:59]} 10. Bf4 {[%clk 0:02:55]}  Bd6 {[%clk 0:02:52]} 11. Bg5 {[%clk 0:02:54]}  Nbd7 {[%clk 0:02:48]} 12. Nc3 {[%clk 0:02:50]}  h6 {[%clk 0:02:47]} 13. Bxf6 {[%clk 0:02:49]}  Nxf6 {[%clk 0:02:47]} 14. Rfe1 {[%clk 0:02:32]}  Bd5 {[%clk 0:02:36]} 15. Qd3 {[%clk 0:02:28]}  Bxf3 {[%clk 0:02:35]} 16. Bxf3 {[%clk 0:02:24]}  c6 {[%clk 0:02:35]} 17. Qc4 {[%clk 0:02:12]}  a5 {[%clk 0:02:34]} 18. Qb3 {[%clk 0:02:08]}  Qe7 {[%clk 0:02:26]} 19. Bg2 {[%clk 0:02:03]}  Bb4 {[%clk 0:02:18]} 20. Red1 {[%clk 0:02:04]}  Rad8 {[%clk 0:02:17]} 21. e3 {[%clk 0:01:56]}  Rd7 {[%clk 0:02:12]} 22. Na2 {[%clk 0:01:55]}  Bd6 {[%clk 0:02:12]} 23. Qc3 {[%clk 0:01:50]}  Ra8 {[%clk 0:02:10]} 24. Rac1 {[%clk 0:01:43]}  e5 {[%clk 0:02:03]} 25. d5 {[%clk 0:01:31]}  cxd5 {[%clk 0:01:54]} 26. Bxd5 {[%clk 0:01:32]}  e4 {[%clk 0:01:49]} 27. Bc4 {[%clk 0:01:03]}  Ng4 {[%clk 0:01:33]} 28. Kg2 {[%clk 0:00:59]}  Ne5 {[%clk 0:01:14]} 29. Be2 {[%clk 0:00:59]}  f5 {[%clk 0:01:07]} 30. Rd5 {[%clk 0:00:56]}  Rc7 {[%clk 0:00:59]} 31. Qb3 {[%clk 0:00:56]}  Kh7 {[%clk 0:00:58]} 32. Rcd1 {[%clk 0:00:52]}  Bb4 {[%clk 0:00:57]} 33. Rb5 {[%clk 0:00:46]}  Rac8 {[%clk 0:00:53]} 34. Rdd5 {[%clk 0:00:38]}  Rc5 {[%clk 0:00:53]} 35. Nxb4 {[%clk 0:00:37]}  axb4 {[%clk 0:00:40]} 36. Qxb4 {[%clk 0:00:35]}  b6 {[%clk 0:00:40]} 37. Rxb6 {[%clk 0:00:29]}  Nf3 {[%clk 0:00:37]} 38. Rxc5 {[%clk 0:00:27]}  Rxc5 {[%clk 0:00:36]} 39. Rb5 {[%clk 0:00:24]}  Rc7 {[%clk 0:00:21]} 40. Qxe7 {[%clk 0:00:23]}  Rxe7 {[%clk 0:00:22]} 41. Bxf3 {[%clk 0:00:23]}  exf3+ {[%clk 0:00:22]} 42. Kxf3 {[%clk 0:00:24]}  Ra7 {[%clk 0:00:22]} 43. a5 {[%clk 0:00:23]}  Kg6 {[%clk 0:00:22]} 44. b4 {[%clk 0:00:24]}  Kg5 {[%clk 0:00:22]} 45. g4 {[%clk 0:00:23]}  g6 {[%clk 0:00:22]} 46. gxf5 {[%clk 0:00:23]}  gxf5 {[%clk 0:00:22]} 47. Rb6 {[%clk 0:00:24]}  h5 {[%clk 0:00:22]} 48. a6 {[%clk 0:00:24]}  Kh4 {[%clk 0:00:22]} 49. b5 {[%clk 0:00:24]}  Kh3 {[%clk 0:00:21]} 50. Rb7 {[%clk 0:00:23]}  Ra8 {[%clk 0:00:21]} 51. a7 {[%clk 0:00:24]}  h4 {[%clk 0:00:21]} 52. b6 {[%clk 0:00:24]}  Rg8 {[%clk 0:00:20]} 53. Rb8 {[%clk 0:00:23]}  Rg2 {[%clk 0:00:15]} 54. a8=Q {[%clk 0:00:21]}  f4 {[%clk 0:00:15]} 55. Rh8 {[%clk 0:00:16]}  Rg4 {[%clk 0:00:14]} 56. Rxh4+ {[%clk 0:00:13]}  Rxh4 {[%clk 0:00:13]} 57. Qc8+ {[%clk 0:00:13]}  Kxh2 {[%clk 0:00:13]} 58. exf4 {[%clk 0:00:12]}  Kg1 {[%clk 0:00:12]} 59. b7 {[%clk 0:00:12]}  Rh3+ {[%clk 0:00:13]} 60. Kg4 {[%clk 0:00:09]}  Kg2 {[%clk 0:00:11]} 61. b8=Q {[%clk 0:00:08]}  Rd3 {[%clk 0:00:11]} 62. Qbb7+ {[%clk 0:00:08]}  Kg1 {[%clk 0:00:11]} 63. Qc1+ {[%clk 0:00:08]}  Kh2 {[%clk 0:00:11]} 64. Qch1# {[%clk 0:00:08]} 1-0


[Site "https://www.chess.com"]

[Event "Titled Tuesday Blitz May 10 Early 2022"]
[White "Nilsen, Tobias Lang"]
[Black "Koziorowicz, Michal"]
[WhiteFideId "1521624"]
[BlackFideId "21809194"]
[WhiteElo "2014"]
[BlackElo "2219"]
[Result "0-1"]
[Round "06"]
[TimeControl "180+1"]
[Date "2022.05.11"]
[WhiteClock "0:00:01"]
[BlackClock "0:00:10"]

1. f4 {[%clk 0:02:57]}  b5 {[%clk 0:02:56]} 2. Nf3 {[%clk 0:02:53]}  Bb7 {[%clk 0:02:56]} 3. e3 {[%clk 0:02:53]}  a6 {[%clk 0:02:55]} 4. b3 {[%clk 0:02:53]}  c5 {[%clk 0:02:55]} 5. Bb2 {[%clk 0:02:53]}  e6 {[%clk 0:02:51]} 6. Be2 {[%clk 0:02:53]}  Nf6 {[%clk 0:02:51]} 7. O-O {[%clk 0:02:53]}  Be7 {[%clk 0:02:51]} 8. d3 {[%clk 0:02:52]}  Nc6 {[%clk 0:02:48]} 9. h3 {[%clk 0:02:51]}  Qb6 {[%clk 0:02:43]} 10. e4 {[%clk 0:02:48]}  d5 {[%clk 0:02:41]} 11. Nbd2 {[%clk 0:02:47]}  O-O-O {[%clk 0:02:37]} 12. Qe1 {[%clk 0:02:44]}  dxe4 {[%clk 0:01:58]} 13. dxe4 {[%clk 0:02:35]}  Nd4 {[%clk 0:01:54]} 14. Nxd4 {[%clk 0:02:34]}  cxd4 {[%clk 0:01:54]} 15. Bd3 {[%clk 0:02:34]}  Bb4 {[%clk 0:01:52]} 16. Rd1 {[%clk 0:02:32]}  Qa5 {[%clk 0:01:48]} 17. a3 {[%clk 0:02:23]}  Bc3 {[%clk 0:01:43]} 18. Bxc3 {[%clk 0:02:11]}  Qxc3 {[%clk 0:01:44]} 19. Nf3 {[%clk 0:02:03]}  Qxe1 {[%clk 0:01:32]} 20. Rfxe1 {[%clk 0:02:04]}  Nh5 {[%clk 0:01:24]} 21. Ng5 {[%clk 0:01:50]}  Rd7 {[%clk 0:01:19]} 22. f5 {[%clk 0:01:34]}  e5 {[%clk 0:01:15]} 23. a4 {[%clk 0:01:29]}  h6 {[%clk 0:01:10]} 24. Nf3 {[%clk 0:01:28]}  f6 {[%clk 0:01:05]} 25. axb5 {[%clk 0:01:27]}  axb5 {[%clk 0:01:02]} 26. Bxb5 {[%clk 0:01:27]}  Rc7 {[%clk 0:01:03]} 27. Bd3 {[%clk 0:01:20]}  Nf4 {[%clk 0:00:54]} 28. Nd2 {[%clk 0:01:20]}  Rc3 {[%clk 0:00:52]} 29. Nc4 {[%clk 0:01:18]}  Kc7 {[%clk 0:00:49]} 30. Rd2 {[%clk 0:01:07]}  Ra8 {[%clk 0:00:49]} 31. Bf1 {[%clk 0:01:02]}  Ra2 {[%clk 0:00:45]} 32. g3 {[%clk 0:01:02]}  Rxg3+ {[%clk 0:00:44]} 33. Kf2 {[%clk 0:01:00]}  Rc3 {[%clk 0:00:44]} 34. Rc1 {[%clk 0:00:51]}  Bxe4 {[%clk 0:00:43]} 35. h4 {[%clk 0:00:44]}  Bxf5 {[%clk 0:00:42]} 36. b4 {[%clk 0:00:34]}  Bd3 {[%clk 0:00:35]} 37. Na5 {[%clk 0:00:33]}  Bxf1 {[%clk 0:00:31]} 38. Kxf1 {[%clk 0:00:34]}  Nd5 {[%clk 0:00:26]} 39. Rd3 {[%clk 0:00:15]}  Rcxc2 {[%clk 0:00:22]} 40. Rxc2+ {[%clk 0:00:16]}  Rxc2 {[%clk 0:00:23]} 41. Rg3 {[%clk 0:00:16]}  g5 {[%clk 0:00:23]} 42. hxg5 {[%clk 0:00:17]}  hxg5 {[%clk 0:00:23]} 43. Rh3 {[%clk 0:00:16]}  Nxb4 {[%clk 0:00:23]} 44. Rh7+ {[%clk 0:00:16]}  Kb6 {[%clk 0:00:23]} 45. Nb3 {[%clk 0:00:15]}  Rc3 {[%clk 0:00:23]} 46. Nd2 {[%clk 0:00:15]}  Nd5 {[%clk 0:00:23]} 47. Ne4 {[%clk 0:00:15]}  Re3 {[%clk 0:00:23]} 48. Nd6 {[%clk 0:00:14]}  Kc6 {[%clk 0:00:22]} 49. Nc4 {[%clk 0:00:14]}  Kc5 {[%clk 0:00:21]} 50. Nxe3 {[%clk 0:00:14]}  Nxe3+ {[%clk 0:00:21]} 51. Ke2 {[%clk 0:00:15]}  Nd5 {[%clk 0:00:21]} 52. Kd3 {[%clk 0:00:15]}  f5 {[%clk 0:00:20]} 53. Rg7 {[%clk 0:00:13]}  e4+ {[%clk 0:00:20]} 54. Kd2 {[%clk 0:00:13]}  g4 {[%clk 0:00:21]} 55. Rg5 {[%clk 0:00:13]}  d3 {[%clk 0:00:17]} 56. Rxf5 {[%clk 0:00:13]}  Kd4 {[%clk 0:00:18]} 57. Rg5 {[%clk 0:00:10]}  e3+ {[%clk 0:00:17]} 58. Kc1 {[%clk 0:00:10]}  d2+ {[%clk 0:00:17]} 59. Kc2 {[%clk 0:00:11]}  Nb4+ {[%clk 0:00:16]} 60. Kd1 {[%clk 0:00:10]}  Nd3 {[%clk 0:00:09]} 61. Rxg4+ {[%clk 0:00:10]}  Kc3 {[%clk 0:00:09]} 62. Rg1 {[%clk 0:00:04]}  Nb2+ {[%clk 0:00:08]} 63. Ke2 {[%clk 0:00:04]}  d1=Q+ {[%clk 0:00:08]} 64. Rxd1 {[%clk 0:00:03]}  Nxd1 {[%clk 0:00:09]} 65. Kxd1 {[%clk 0:00:02]}  Kd3 {[%clk 0:00:09]} 66. Ke1 {[%clk 0:00:01]}  e2 {[%clk 0:00:10]} 0-1


[Site "https://www.chess.com"]

[Event "Titled Tuesday Blitz May 10 Early 2022"]
[White "Oparin, Grigoriy"]
[Black "Zhao, Jun"]
[WhiteFideId "24125890"]
[BlackFideId "8602522"]
[WhiteElo "2665"]
[BlackElo "2547"]
[Result "1-0"]
[Round "06"]
[TimeControl "180+1"]
[Date "2022.05.10"]
[WhiteClock "0:00:37"]
[BlackClock "0:00:12"]

1. d4 {[%clk 0:03:00]}  Nf6 {[%clk 0:03:00]} 2. c4 {[%clk 0:03:01]}  e6 {[%clk 0:03:00]} 3. Nf3 {[%clk 0:03:02]}  d5 {[%clk 0:03:00]} 4. g3 {[%clk 0:03:02]}  Bb4+ {[%clk 0:02:59]} 5. Bd2 {[%clk 0:03:01]}  Be7 {[%clk 0:02:59]} 6. Bg2 {[%clk 0:03:02]}  O-O {[%clk 0:03:00]} 7. O-O {[%clk 0:03:02]}  Nbd7 {[%clk 0:03:01]} 8. Bc3 {[%clk 0:03:02]}  b6 {[%clk 0:02:56]} 9. cxd5 {[%clk 0:02:59]}  exd5 {[%clk 0:02:54]} 10. Nbd2 {[%clk 0:02:58]}  Bb7 {[%clk 0:02:55]} 11. Rc1 {[%clk 0:02:55]}  c5 {[%clk 0:02:54]} 12. dxc5 {[%clk 0:02:50]}  bxc5 {[%clk 0:02:54]} 13. e3 {[%clk 0:02:51]}  Re8 {[%clk 0:02:49]} 14. Qc2 {[%clk 0:02:42]}  Qb6 {[%clk 0:02:47]} 15. Rfd1 {[%clk 0:02:41]}  a5 {[%clk 0:02:48]} 16. Qf5 {[%clk 0:02:32]}  g6 {[%clk 0:02:45]} 17. Qc2 {[%clk 0:02:28]}  Bf8 {[%clk 0:02:44]} 18. b3 {[%clk 0:02:04]}  Rac8 {[%clk 0:02:32]} 19. Qb2 {[%clk 0:01:56]}  a4 {[%clk 0:02:30]} 20. Bh3 {[%clk 0:01:14]}  Ra8 {[%clk 0:02:16]} 21. Bg2 {[%clk 0:00:58]}  axb3 {[%clk 0:02:15]} 22. axb3 {[%clk 0:00:59]}  h6 {[%clk 0:02:10]} 23. Rb1 {[%clk 0:00:57]}  Ba6 {[%clk 0:01:52]} 24. b4 {[%clk 0:00:56]}  cxb4 {[%clk 0:01:18]} 25. Bxb4 {[%clk 0:00:57]}  Rab8 {[%clk 0:01:12]} 26. Bc3 {[%clk 0:00:57]}  Qxb2 {[%clk 0:01:08]} 27. Rxb2 {[%clk 0:00:58]}  Rxb2 {[%clk 0:01:08]} 28. Bxb2 {[%clk 0:00:59]}  Rb8 {[%clk 0:01:03]} 29. Bd4 {[%clk 0:00:57]}  Ne4 {[%clk 0:01:00]} 30. Ra1 {[%clk 0:00:55]}  Bb7 {[%clk 0:00:48]} 31. h4 {[%clk 0:00:50]}  Ra8 {[%clk 0:00:47]} 32. Rb1 {[%clk 0:00:50]}  Bc6 {[%clk 0:00:47]} 33. Rc1 {[%clk 0:00:49]}  Bb5 {[%clk 0:00:44]} 34. h5 {[%clk 0:00:42]}  g5 {[%clk 0:00:35]} 35. Nxe4 {[%clk 0:00:42]}  dxe4 {[%clk 0:00:36]} 36. Nd2 {[%clk 0:00:43]}  f5 {[%clk 0:00:31]} 37. g4 {[%clk 0:00:43]}  Ra2 {[%clk 0:00:27]} 38. Nc4 {[%clk 0:00:39]}  Bxc4 {[%clk 0:00:17]} 39. Rxc4 {[%clk 0:00:37]}  Ra1+ {[%clk 0:00:12]} 40. Bxa1 {[%clk 0:00:37]} 1-0


[Site "https://www.chess.com"]

[Event "Titled Tuesday Blitz May 10 Early 2022"]
[White "Perez Gormaz, Matias"]
[Black "Sanchez, Robert"]
[WhiteFideId "3406342"]
[BlackFideId "2034360"]
[WhiteElo "2341"]
[BlackElo "2168"]
[Result "0-1"]
[Round "06"]
[TimeControl "180+1"]
[Date "2022.05.11"]
[WhiteClock "0:00:02"]
[BlackClock "0:00:12"]

1. d4 {[%clk 0:03:00]}  d5 {[%clk 0:02:59]} 2. c3 {[%clk 0:03:00]}  Nf6 {[%clk 0:02:53]} 3. Bf4 {[%clk 0:02:59]}  c6 {[%clk 0:02:52]} 4. e3 {[%clk 0:02:57]}  e6 {[%clk 0:02:52]} 5. Nf3 {[%clk 0:02:56]}  Be7 {[%clk 0:02:53]} 6. Nbd2 {[%clk 0:02:56]}  O-O {[%clk 0:02:52]} 7. Bd3 {[%clk 0:02:56]}  Nbd7 {[%clk 0:02:52]} 8. h4 {[%clk 0:02:54]}  Nh5 {[%clk 0:02:49]} 9. Bh2 {[%clk 0:02:32]}  f5 {[%clk 0:02:40]} 10. Ng5 {[%clk 0:02:05]}  Ndf6 {[%clk 0:02:35]} 11. f3 {[%clk 0:01:41]}  Bd6 {[%clk 0:02:15]} 12. Be5 {[%clk 0:01:34]}  h6 {[%clk 0:01:57]} 13. Nh3 {[%clk 0:01:20]}  Bxe5 {[%clk 0:01:52]} 14. dxe5 {[%clk 0:01:21]}  Nd7 {[%clk 0:01:51]} 15. f4 {[%clk 0:01:21]}  Ng3 {[%clk 0:01:52]} 16. Rh2 {[%clk 0:01:06]}  Qxh4 {[%clk 0:01:45]} 17. Nf3 {[%clk 0:01:07]}  Qe7 {[%clk 0:01:38]} 18. Nf2 {[%clk 0:01:05]}  Nc5 {[%clk 0:01:35]} 19. Bc2 {[%clk 0:01:05]}  Nge4 {[%clk 0:01:30]} 20. Qe2 {[%clk 0:01:01]}  a5 {[%clk 0:01:22]} 21. Nh4 {[%clk 0:01:00]}  Qf7 {[%clk 0:01:16]} 22. Nf3 {[%clk 0:00:57]}  Qg6 {[%clk 0:01:07]} 23. Nh1 {[%clk 0:00:34]}  b5 {[%clk 0:01:04]} 24. Nd4 {[%clk 0:00:29]}  Bd7 {[%clk 0:01:04]} 25. Qh5 {[%clk 0:00:15]}  Qxh5 {[%clk 0:01:03]} 26. Rxh5 {[%clk 0:00:16]}  b4 {[%clk 0:01:00]} 27. c4 {[%clk 0:00:04]}  dxc4 {[%clk 0:00:55]} 28. Nf2 {[%clk 0:00:04]}  Nxf2 {[%clk 0:00:48]} 29. Kxf2 {[%clk 0:00:05]}  a4 {[%clk 0:00:42]} 30. Rhh1 {[%clk 0:00:04]}  b3 {[%clk 0:00:41]} 31. Bd1 {[%clk 0:00:03]}  Nd3+ {[%clk 0:00:41]} 32. Kg3 {[%clk 0:00:03]}  Nxb2 {[%clk 0:00:38]} 33. Be2 {[%clk 0:00:02]}  Nd3 {[%clk 0:00:25]} 34. Bxd3 {[%clk 0:00:01]}  cxd3 {[%clk 0:00:25]} 35. axb3 {[%clk 0:00:01]}  c5 {[%clk 0:00:24]} 36. Nf3 {[%clk 0:00:01]}  axb3 {[%clk 0:00:23]} 37. Rac1 {[%clk 0:00:02]}  b2 {[%clk 0:00:18]} 38. Rb1 {[%clk 0:00:02]}  Rfb8 {[%clk 0:00:17]} 39. Nd2 {[%clk 0:00:02]}  Ba4 {[%clk 0:00:15]} 40. Kf2 {[%clk 0:00:02]}  Bc2 {[%clk 0:00:15]} 41. Nc4 {[%clk 0:00:02]}  Ra2 {[%clk 0:00:12]} 0-1


[Site "https://www.chess.com"]